Cogmind - Beta 17 @@@ ROGUE MODE // 2026.07.12 @ 12:39:24 Player: Scared Dad Result: Self-destructed Performance ------------- Evolutions (2) 1000 Regions Visited (3) 600 Robots Destroyed (15) 75 Value Destroyed (325) 325 Prototype IDs (0) 0 Alien Tech Used (0) 0 Bonus (0) 0 TOTAL SCORE: 2000 Bonus ------- None Cogmind --------- Core Integrity 485/550 Matter 60/300 Energy 100/100 System Corruption 0% Temperature Cool (0) Movement Flying (55) Location -8/Materials Parts ------- > --- POWER (1) -------- (None) > --- PROPULSION (2) --- Makeshift Flight Unit > --- UTILITY (5) ------ Small Storage Unit > --- WEAPON (3) ------- (None) > --- INVENTORY (8) ---- Wheel Light Assault Rifle Assault Cannon Subdweller Shrapnel Launcher Datajack Peak State ------------ > --- POWER ------------ Light Ion Engine > --- PROPULSION ------- Wheel Wheel > --- UTILITY ---------- Small Storage Unit > --- WEAPON ----------- Riot Gun Heavy Riot Gun > --- INVENTORY -------- Light Ion Engine Light Treads Light Treads Makeshift Flight Unit Medium Laser Battle Rifle Subdweller Shrapnel Launcher Datajack [Rating: 12] Favorites ----------- Power Light Ion Engine Engine Light Ion Engine Propulsion Wheel Treads Light Treads Leg Aluminum Leg Wheel Wheel Flight Unit Makeshift Flight Unit Utility Small Storage Unit Device Subdweller Optics Storage Small Storage Unit Weapon Battle Rifle Energy Gun Medium Laser Ballistic Gun Battle Rifle Ballistic Cannon Assault Cannon Launcher Subdweller Shrapnel Launcher Special Melee Weapon Datajack Build | -11 -10 -10 -8 ------- Run | Yrd Mat Sub Mat Slots Evolved 4 | . . . 4 Power . | . . . . Propulsion . | . . . . Utility 3 | . . . 3 Weapon 1 | . . . 1 Parts Attached 21 | 7 . 11 3 Power 2 | 1 . 1 . Engine 2 | 1 . 1 . Core . | . . . . Reactor . | . . . . Propulsion 7 | 2 . 4 1 Treads 2 | . . 2 . Leg 2 | . . 2 . Wheel 2 | 2 . . . Hover . | . . . . Flight 1 | . . . 1 Utility 2 | 1 . 1 . Device 1 | . . 1 . Storage 1 | 1 . . . Processor . | . . . . Hackware . | . . . . Protection . | . . . . Artifact . | . . . . Weapon 10 | 3 . 5 2 Energy Gun 5 | 3 . 2 . Energy Cannon . | . . . . Ballistic Gun 1 | . . 1 . Ballistic Cannon 1 | . . . 1 Launcher 2 | . . 1 1 Special Weapon . | . . . . Impact Weapon . | . . . . Slashing Weapon . | . . . . Piercing Weapon . | . . . . Special Melee Weapon 1 | . . 1 . Unidentified Prototypes . | . . . . Parts Lost 13 | . . 8 5 Power 2 | . . 1 1 Propulsion 4 | . . 2 2 Utility 1 | . . . 1 Weapon 6 | . . 5 1 Highest Loss Streak 5 | . . 4 5 To Critical Strikes . | . . . . Average Backups 6 | 4 6 6 4 Power . | . 1 . . Propulsion 3 | 2 4 3 2 Utility . | . . . . Weapon 1 | . 1 1 1 Tool/Special . | . . . . Unused Backups . | . . . . Power . | . . . . Propulsion . | . . . . Utility . | . . . . Weapon . | . . . . Tool/Special . | . . . . Average Slot Usage (%) 79 | . 85 84 47 Engine 12 | . 14 13 7 Treads 5 | . . 4 16 Leg 1 | . . 2 . Wheel 18 | . 28 20 . Device 3 | . . 3 8 Storage 13 | . 14 14 9 Energy Gun 15 | . 28 16 . Ballistic Gun 5 | . . 7 . Launcher 1 | . . 2 . Peak Build Rating 12 | 6 6 12 10 Average Rating 8 | 4 6 9 8 On Entrance 4 | . 6 6 6 Avg Prop Armor Cover (%) . | . . . . Naked Turns . | . . . . Heaviest Build 21 | 12 11 21 16 Greatest Support 40 | 20 20 40 40 Greatest Overweight (x) 2 | . . 2 . Average Overweight (x) . | . . . . Largest Inventory Capacity 8 | 8 8 8 8 Average Capacity 7 | 7 8 8 8 Most Carried 8 | 6 7 8 6 Average Carried 6 | 4 6 6 4 Final Capacity 8 | 8 8 8 8 Final Carried 7 | 6 7 4 5 Class Distribution -------------------- 100% | Mutant Dominant Class ---------------- Mutant | -10/Materials Mutant | -10/Subcaves Mutant | -8/Materials Resources | -11 -10 -10 -8 ----------- Run | Yrd Mat Sub Mat Matter Collected 409 | 245 25 139 . Remotely . | . . . . Salvage Created 329 | . 30 225 74 Parts 24 | . 1 14 9 Haulers Intercepted . | . . . . Recyclers Shooed . | . . . . Parts Field Recycled . | . . . . Retrieved Matter . | . . . . Parts Self-Destructed 12 | . . 12 . Prevented 1 | . . 1 . Parts Restored . | . . . . Kills | -11 -10 -10 -8 ------- Run | Yrd Mat Sub Mat Combat Hostiles Destroyed 13 | . . 8 5 Guns 8 | . . 8 . Cannons 1 | . . . 1 AOE 4 | . . . 4 Classes Destroyed 5 | . 1 2 2 Worker 1 | . 1 . . Tunneler 1 | . . . 1 Swarmer 8 | . . 4 4 Grunt 1 | . . . 1 Subdweller 4 | . . 4 . Best Kill Streak 6 | . 1 4 6 Combat Bots Only 5 | . . 4 5 Max Kills in Single Turn 3 | . 1 1 3 Gunslinging . | . . . . Exploded 3 | . . . 3 Melee . | . . . . Uniques/NPCs Destroyed . | . . . . Combat | -11 -10 -10 -8 -------- Run | Yrd Mat Sub Mat Hostile Shots Fired 105 | . . 77 28 Missed 33 | . . 23 10 Hits 72 | . . 54 18 Projectile 72 | . . 54 18 Critical Strikes 3 | . . 3 . Damage Taken 1438 | . 7 1091 340 Core 230 | . . 165 65 Absorbed by Shields . | . . . . Core Remaining (%) 67 | 100 . 34 . Volleys Fired 48 | . . 44 4 Largest 2 | . . 2 2 Hottest 110 | . . 110 70 Shots Fired 79 | . . 71 8 Gun 65 | . . 65 . Cannon 4 | . . . 4 Launcher 10 | . . 6 4 Special . | . . . . Kinetic 25 | . . 21 4 Thermal 31 | . . 31 . Explosive 4 | . . . 4 Electromagnetic 19 | . . 19 . Robot Hit Streak 21 | . . 21 1 Robot Miss Streak 4 | . . 3 4 Penetration Max . | . . . . Secondary Targets 1 | . . 1 . Max Gunslinging Chain 1 | . . 1 . Shots Hit Robots 54 | . . 52 2 Core Hits 21 | . 1 13 7 Critical Kills . | . . . . Critical Parts Destroyed . | . . . . Critical Strikes 4 | . . 4 . Burn 2 | . . 2 . Destroy 2 | . . 2 . Melee Attacks . | . . . . Impact . | . . . . Slashing . | . . . . Piercing . | . . . . Sneak Attacks . | . . . . Combat Hostiles . | . . . . Follow-up Attacks . | . . . . Damage Inflicted 1238 | . 15 778 445 Guns 677 | . . 677 . Cannons 27 | . . . 27 Explosions 519 | . . 101 418 Melee . | . . . . Ramming 15 | . 15 . . Kinetic 290 | . . 263 27 Thermal 319 | . . 319 . Explosive 418 | . . . 418 Electromagnetic 196 | . . 196 . Impact . | . . . . Slashing . | . . . . Piercing . | . . . . Highest Corruption . | . . . . Average Corruption . | . . . . Corruption Purged . | . . . . Corruption Blocked . | . . . . Overload Shots . | . . . . Overflow Damage 72 | . . . 72 Projectiles . | . . . . Explosions 72 | . . . 72 Melee . | . . . . Knockbacks . | . . . . Impact . | . . . . Kinetic . | . . . . Secondary . | . . . . Self-Inflicted Damage 113 | . 7 33 73 Shots 3 | . . 1 2 Rammed 1 | . 1 . . Targets Rammed 1 | . 1 . . Kicked . | . . . . Crushed . | . . . . Highest Temperature 279 | . . 279 5 Average Temperature 153 | . . 184 2 Received Heat Transfer 780 | . . 690 90 Siege Activations . | . . . . Martial Activations . | . . . . Shielding Activations . | . . . . Robots Disrupted . | . . . . Combat Hostiles . | . . . . Robots Corrupted . | . . . . Combat Hostiles . | . . . . Parts Fried 1 | . . 1 . Impact Corruptions . | . . . . Robots Melted . | . . . . Combat Hostiles . | . . . . Parts Melted 2 | . . 2 . Heat Transferred 1038 | . . 1038 . Parts Sabotaged . | . . . . Parts Stolen . | . . . . Parts Stripped . | . . . . Power Chain Reactions . | . . . . Alert | -11 -10 -10 -8 ------- Run | Yrd Mat Sub Mat Maximum Alert Level . | . . . . Low Security (%) 100 | 100 100 . 100 Level 1 . | . . . . Level 2 . | . . . . Level 3 . | . . . . Level 4 . | . . . . Level 5 . | . . . . High Security . | . . . . Max Security . | . . . . Peak Influence 163 | . 5 . 163 Initial . | . . . . Average 8 | . 1 . 18 Influence Increases 332 | . 9 110 213 Destroy 0b10 Robot/C 180 | . . 80 100 Destroy 0b10 Robot/NC 10 | . 5 . 5 Destroy Leader 10 | . . . 10 Successful Hack 4 | . 4 . . Disable Machine 45 | . . . 45 Destroy Structure 53 | . . . 53 Lose Combat Pursuer 30 | . . 30 . Influence Decreases 169 | . 4 115 50 Entered New Map 3 | . . 3 . Time Decay 108 | . 4 94 10 Lost Part 58 | . . 18 40 Squads Dispatched 1 | . . . 1 Investigation . | . . . . Extermination . | . . . . Reinforcement . | . . . . Assault . | . . . . Garrison 1 | . . . 1 Intercept . | . . . . Searches Triggered . | . . . . Construction Impeded . | . . . . Haulers Reinforced . | . . . . Active Scanning Responses . | . . . . Cargo Convoy Interrupts . | . . . . Stealth | -11 -10 -10 -8 --------- Run | Yrd Mat Sub Mat Distress Signals . | . . . . Communications Jammed . | . . . . Distress Signals . | . . . . Times Spotted 19 | . . 11 8 Peak Tracking Total 6 | . . 4 6 Tactical Retreats 2 | . . 2 . Traps | -11 -10 -10 -8 ------- Run | Yrd Mat Sub Mat Traps Triggered . | . . . . Indirectly . | . . . . Trap Hack Attempts . | . . . . Triggered . | . . . . Disarmed . | . . . . Reprogrammed . | . . . . Reused . | . . . . Traps Extracted . | . . . . Installed . | . . . . Triggered . | . . . . Machines | -11 -10 -10 -8 ---------- Run | Yrd Mat Sub Mat Machines Disabled 3 | . . . 3 Max in Single Turn 2 | . . . 2 Machines Repaired . | . . . . Machines Dismantled . | . . . . Machines Sabotaged . | . . . . Overloaded Fab Kills . | . . . . Hacking | -11 -10 -10 -8 --------- Run | Yrd Mat Sub Mat Machines Accessed 1 | . 1 . . Terminals 1 | . 1 . . Fabricators . | . . . . Repair Stations . | . . . . Recycling Units . | . . . . Scanalyzers . | . . . . Garrison Access . | . . . . Total Hacks 3 | . 3 . . Successful 3 | . 3 . . Failed . | . . . . Catastrophic . | . . . . Database Lockouts . | . . . . Manual . | . . . . Terminals 3 | . 3 . . Fabricators . | . . . . Repair Stations . | . . . . Recycling Units . | . . . . Scanalyzers . | . . . . Garrison Access . | . . . . Terminal Hacks 3 | . 3 . . Emergency Access Points 1 | . 1 . . Alert Level 1 | . 1 . . Hauler Manifests 1 | . 1 . . Fabricator Hacks . | . . . . Repair Station Hacks . | . . . . Recycling Unit Hacks . | . . . . Scanalyzer . | . . . . Garrison Access Hacks . | . . . . Unauthorized Hacks . | . . . . Terminals . | . . . . Fabricators . | . . . . Repair Stations . | . . . . Recycling Units . | . . . . Scanalyzers . | . . . . Garrison Access . | . . . . Data Cores Recovered . | . . . . Used . | . . . . Hacking Detections . | . . . . Full Trace Events . | . . . . Feedback Events . | . . . . Feedback Blocked . | . . . . Robot Schematics Acquired . | . . . . Robots Built . | . . . . Authchips . | . . . . Time . | . . . . Total Robot Build Rating . | . . . . Part Schematics Acquired . | . . . . Parts Built . | . . . . Authchips . | . . . . Time . | . . . . Total Part Build Rating . | . . . . Part Studies Acquired . | . . . . Parts Repaired . | . . . . Time . | . . . . Parts Recycled . | . . . . Recycled Matter . | . . . . Retrieved Matter . | . . . . Retrieved Components . | . . . . Parts Scanalyzed . | . . . . Part Schematics Acquired . | . . . . Parts Damaged . | . . . . Bothacking | -11 -10 -10 -8 ------------ Run | Yrd Mat Sub Mat Used RIF Installer . | . . . . Robots Hacked . | . . . . Non-combat . | . . . . Combat . | . . . . Robot Hacks Applied . | . . . . Relay Couplers Released . | . . . . Fabnet Peak Effective % . | . . . . Robots Rewired . | . . . . Allies Hacked . | . . . . Hacks Repelled . | . . . . Allies | -11 -10 -10 -8 -------- Run | Yrd Mat Sub Mat Total Allies . | . . . . Largest Group . | . . . . Highest-Rated Group . | . . . . Highest-Rated Ally . | . . . . Total Orders . | . . . . Ally Attacks . | . . . . Total Damage . | . . . . Kills . | . . . . Allies Corrupted . | . . . . Allies Melted . | . . . . Intel | -11 -10 -10 -8 ------- Run | Yrd Mat Sub Mat Active Infowar (turns) 66 | . . 66 . Optics 66 | . . 66 . Robot Analysis Total . | . . . . Derelict Logs Recovered . | . . . . Drone Launches . | . . . . Drone Recoveries . | . . . . Exploration | -11 -10 -10 -8 ------------- Run | Yrd Mat Sub Mat Turns Passed 841 | 59 99 574 109 Spaces Moved 711 | 48 122 481 60 Core 7 | 7 . . . Treads 81 | . . 27 54 Legs 10 | . . 10 . Wheels 607 | 41 122 444 . Hover . | . . . . Flight 6 | . . . 6 Fastest Speed 50 | 50 80 80 55 Average Speed 90 | 75 80 86 149 Slowest Speed 160 | 80 80 160 160 Overloaded Moves . | . . . . Propulsion Burnouts . | . . . . Robots Hopped . | . . . . Potential Cave-ins . | . . . . Cave-ins Triggered . | . . . . Exploration Rate (%) 16 | 3 25 29 7 Regions Visited 3 Branch Regions 1 Pre-discovered Areas . | . . . . Known Exits Taken . | . . . . Unknown Exits Taken 3 | 1 1 1 . Scrap Searched 3 | . . 3 . Spaces Dug . | . . . . Terrain Destroyed 120 | . . 60 60 Melee . | . . . . Projectile 2 | . . 1 1 AOE 118 | . . 59 59 Terrain Rammed . | . . . . Walls Destroyed . | . . . . Machines Disabled . | . . . . Actions | -11 -10 -10 -8 --------- Run | Yrd Mat Sub Mat Total 829 | 70 123 565 71 Wait 18 | 4 . 14 . Move 708 | 47 121 480 60 Hop . | . . . . Pick Up 23 | 12 1 7 3 Fast Attach . | . . . . Attach 17 | 6 . 8 3 Detach 1 | . . . 1 Swap 10 | 1 . 9 . Drop 3 | . . 3 . Fire 48 | . . 44 4 Melee . | . . . . Ram 1 | . 1 . . Kick . | . . . . Crush . | . . . . Escape Stasis . | . . . . Rewire . | . . . . Trap . | . . . . Miscellaneous . | . . . . Route ------- -11/Scrapyard -10/Materials (discovered 2 exits: [*Min] / [*Sub]) -10/Subcaves (discovered 3 exits: [*Mat] / [*Rec] / [Scr]) -8/Materials History --------- Turn | Location | Event 6 | -11/Scrapyard | Discovered new exit (range 16) 60 | -11/Scrapyard | Entered Materials 61 | -10/Materials | Met a group of wandering Federalists 97 | -10/Materials | Discovered new exit (range 13) 126 | -10/Materials | Discovered new exit (range 15) 159 | -10/Materials | Entered Subcaves 160 | -10/Subcaves | Continued accompanying wandering Federalists (6) 160 | -10/Subcaves | Approached by a straggling Scientist 204 | -10/Subcaves | Disturbed a concealed Subdweller 305 | -10/Subcaves | Build established: Mutant 412 | -10/Subcaves | Shifting Twisted Machinery released Sub. Power Source 414 | -10/Subcaves | Shifting Twisted Machinery released Riot Gun 424 | -10/Subcaves | Discovered new exit (range 10) 515 | -10/Subcaves | Shifting Twisted Machinery released Sub. Optics 516 | -10/Subcaves | A swath of the cavern ceiling suddenly collapsed 606 | -10/Subcaves | Discovered new exit (range 13) 622 | -10/Subcaves | Shifting Twisted Machinery released Sub. Laser 663 | -10/Subcaves | Core integrity fell below 50% 733 | -10/Subcaves | Entered Materials 733 | -8/Materials | Evolved 4 slots: Utility x3, Weapon x1 740 | -8/Materials | Lost 4 parts (1p3w) 830 | -8/Materials | Garrison activated, responded to threat 842 | -8/Materials | Self-destructed Last Messages --------------- 00830_ S-10 Pest destroyed. 00830_ Destroyed Lgt. Ion Engine. 00830_ S-10 Pest destroyed. 00830_ Destroyed Weight Redist. System. 00830_ A-02 Transporter calls for garrison support. 00830_ ALERT: Activating Garrison Access M001. 00830_ S-10 Pest destroyed. 00831_ Sub. Optics destroyed. 00833_ S-10 Pest destroyed. 00833_ T-07 Excavator destroyed. 00836_ Fusion Modulator explodes. 00836_ Lgt. Treads destroyed. 00836_ Destroyed Lgt. Treads. 00836_ Lgt. Treads destroyed. 00836_ Destroyed Lgt. Treads. 00836_ Rocket Launcher destroyed. 00836_ Destroyed Rocket Launcher. 00841_ Acquired Lgt. Assault Rifle. 00842_ K-01 Serf collects debris. Map ----- +----------------------------------------------------+ | | | | | | | | | | | ?????????????????????????????????????????????????? | | ?????????????????????????????????????????????????? | | ????????????????????###########??????????????????? | | ????????????????????# = #??????????????????? | | ????????????????????# #??????????????????? | | ????????????????????# """ """ #??????????????????? | | ????????????????????# """ """ #??????????????????? | | ???####+#######+????# """ """ #####??????????????? | | ??? ????# """ """ # #??????????????? | | ???! ????# """ """ # #??????????????? | | ?? ????# # #??????????????? | | ?? ###### # ##### #??????????????? | | ? !!= #??????????????? | | ? !!= #??????????????? | | ? !! [%! #??????????????? | | ????#" "#""T""####### ;;;;;######??????????? | | ?????????"""????????# ;;] ????????? | | ????????????????????# ; """"?????????? | | ????????????????????## ; ""???????????? | | ????????????????????## # ""???????????? | | ????????????????????# % @ ????????? | | ????????????????????# ; """??????????? | | ????????????????????# # ""???????????? | | ????????????????????# ;# ""???????????? | | ????????????????????### ;#? ???????????? | | ??????????????????????# ;;;;;;;#??##???????????? | | ??????????????????????# ??????????????? | | ??????????????????????# ?????????????? | | ??????????????????????# h ???????????? | | ??????????????????????# #######+######???????????? | | ??????????????????????#a?????????????????????????? | | ??????????????????????# ?????????????????????????? | | ??????????????????????#k?????????????????????????? | | ??????????????????????# ?????????????????????????? | | ??????????????????????# ?????????????????????????? | | ?????????????????????????????????????????????????? | | ?????????????????????????????????????????????????? | | ?????????????????????????????????????????????????? | | ?????????????????????????????????????????????????? | | ?????????????????????????????????????????????????? | | ?????????????????????????????????????????????????? | | ?????????????????????????????????????????????????? | | ?????????????????????????????????????????????????? | | ?????????????????????????????????????????????????? | | ?????????????????????????????????????????????????? | +----------------------------------------------------+ Best States ------------- Heat Dissipation 31 Energy Generation 10 Energy Capacity 125 Matter Stores 300 Matter Capacity 300 Sight Range 21 Terrain Scan Density 10 Evasion (%) 59 Recoil Reduction 2 Item Schematics ----------------- None Robot Schematics ------------------ None Fabricated ------------ Nothing Repaired ---------- Nothing Studied --------- None Alien Tech Used ----------------- None Achievements -------------- None Challenges ------------ None Game ------ Seed MiniChromionGuard Manual? 0 Play Time 00:10:05 Cumulative 123.0 hours Start 2026.07.12 @ 12:30:34 End 2026.07.12 @ 12:39:24 Sessions 1 Manual Loads 0 Difficulty Rogue Special Mode None Game No. 153 Rogue 153 Adventurer 0 Explorer 0 Win Type - Total 0 Types 0/0/0/0/0/0/0/0/0/0 Lore% 53 Gallery% 47 Achievement% 34 Wizard Run 0 Options --------- Layout 2 ASCII 0 Keyboard 0 Movement Numpad Keybinds 0 Fullscreen 1 Font 24/Smallcaps Map View 50x44 Zoom Use 0% Tactical HUD 1 Map Filters NONE Filters NONE Steam 1 RUN: 8e14f3c8-4a55-40c4-a5a3-fdf5c2289b33